{"text_format":"1","workbook":"xlsx","n_sheets":4,"sheets":["ورقة1","صفحة الادخال","صفحة المعلومات الثابتة","Sheet3"],"not_rendered":{"charts":0,"images":1,"macros":1,"external_links":0,"defined_names":1,"comments":0,"pivot_tables":0},"unopened":[],"bounds":{"document_bytes":16777216,"sheet_cells":100000,"rows_first":2000,"rows_last":500,"rows_between":2000,"halvings":0,"cell_chars":16384,"cell_head_chars":4096},"cells_cut":0,"cells_raw":0,"read":"whole","date_system":"1900"}

{"sheet":"ورقة1","index":0,"n_rows":26,"n_cols":1,"rows_kept":26,"cut":false,"hidden":false,"merged":[]}
["تعبئة الخانات تلقائية"]
[]
["https://www.officena.net/ib/topic/114137-%D8%AA%D8%B9%D8%A8%D8%A6%D8%A9-%D8%A7%D9%84%D8%AE%D8%A7%D9%86%D8%A7%D8%AA-%D8%AA%D9%84%D9%82%D8%A7%D8%A6%D9%8A%D8%A9/"]
[]
[]
["السلام عليكم ورحمة الله وبركاته"]
[]
["السادة الكرام "]
[]
["تحية طيبة وبعد ,,,"]
[]
[]
[]
["لدي ملف اكسل عبارة عن صفحتين : "]
[]
["الصفحة الاولى صفحة ادخال معلومات ( يدوية ) وكل مرة اكرر الاسماء وفيها تعب نوعا ما"]
[]
["والصفحة الثانية معلومات ثابتة 3 خانات ( رقم سيارة - اسم السائق - جنسية السائق )"]
[]
[]
[]
["كيف يمكنني بتسجيل رقم السيارة فقط  بصفحة الادخال ,  يقوم الاكسل تلقائيا بتعبئة اسم السائق وجنسيته  \"مستندا بذلك على المعلومات الموجودة بالصفة الثانية\""]
[]
["وكذلك الامر ينظبق على اسم السائق ليقوم الاكسل بتعبئة رقم السيارة وجنسية السائق \"مستندا بذلك على المعلومات الموجودة بالصفة الثانية\""]
[]
["( علما بانه يوجد احتمال تكرار الاسم على اكثر من رقم سيارة ) و ( رقم سيارة لاكثر من اسم سائق )"]

{"sheet":"صفحة الادخال","index":1,"n_rows":13,"n_cols":4,"rows_kept":13,"cut":false,"hidden":false,"merged":[]}
[null,"رقم السيارة","اسم السائق"]
[null,2478]
["التسلسل","رقم السيارة","اسم السائق","الجنسية"]
[1]
[2]
[3]
[4]
[5]
[6]
[7]
[8]
[9]
[10]

{"sheet":"صفحة المعلومات الثابتة","index":2,"n_rows":1129,"n_cols":4,"rows_kept":1129,"cut":false,"hidden":false,"merged":[]}
["رقم السيارة","اسم السائق","الجنسية",{"$f":"COUNTIFS(A:A,A1)","v":1}]
[4009,"صابر محمد","مصري",{"$f":"COUNTIFS(A:A,A2)","v":1}]
[4536,"عماد جمعة","مصري",2]
[4041,"احمد شاكر","مصري",1]
[2478,"احمد علي","مصري",2]
[7885,"وحيد ساجد","مصري",1]
[3933,"جمال  ابو جميل","مصري",1]
[1984,"عطية ابراهيم عطية علام","مصري",1]
[7682,"محمد عاشور","مصري",1]
[8662,"عبدالله هلولة","مصري",1]
[9889,"محمود رمضان","مصري",1]
[3680,"علم الدين اقن","تركي",1]
[2082,"محمد عابد","باكستاني",1]
[2015,"فهيم خان امير","باكستاني",1]
[8312,"شير خان اعتبار","باكستاني",1]
[9059,"زار محمد سيده","باكستاني",1]
[7414,"حسرت منير","باكستاني",2]
[2040,"مشرف خان محمد","باكستاني",1]
[2651,"محمد العدل جمعة","مصري",1]
[7017,"مصطفى السيد احمد","مصري",2]
[8063,"ايمن شعبان السيد","مصري",1]
[8749,"ماجد احمد يوسف محمد","مصري",1]
[6091,"وليد سيد مرزوق احمد","مصري",1]
[2921,"احمد ابو السعود فوده","مصري",1]
[4266,"احمد احمد محمد السيد","مصري",1]
[8493,"لطفي محمد ابراهيم","مصري",2]
[6978,"هاني محمد عبدالرحمن","مصري",1]
[8610,"حمادة  محمد جودي","مصري",1]
[1809,"عصام الدين ابراهيم","سوداني",1]
[2558,"محمد فاروق احمد","مصري",2]
[6039,"محمد ابراهيم عطية","مصري",1]
[4582,"احمد محمد صديق","سوري",1]
[5617,"عبدالعظيم ابو العنين","مصري",2]
[6049,"سامح نظمي حسين","مصري",2]
[4388,"احمد عابدين عوض","مصري",2]
[2822,"ابراهيم اسماعيل","مصري",2]
[6890,"سمير محمد مصطفى","مصري",1]
[5833,"محمود سليم علاء الدين","مصري",1]
[3581,"حمادة حامد ابو شادي","مصري",1]
[2822,"ابراهيم اسماعيل عبدالحميد","مصري",2]
[1819,"احمد حسن حمودة","سوري",1]
[4709,"يوسف احمد تيتي","سوري",1]
[1941,"سعد السيد سعد علي","مصري",1]
[8201,"هاني صلاح سالم محمد","مصري",1]
["عارف","محمد سعيد دعبول","لبناني",1]
[7065,"محمد محمود احمد","مصري",1]
[1918,"عبدالباقي المعصراوي","مصري",2]
["ابو عدنان","علي محمود الدراوشة","سوري",2]
["ابو عدنان","حازم علي الدراوشة","سوري",2]
[4254,"عرفات محمد احمد","مصري",1]
[4732,"فتحي محمد احمد","مصري",1]
[2327,"احمد عطيه المراغى","مصري",1]
[2840,"محمد البصيلي","مصري",1]
[1272,"جميل يوسف ابو زيد","سوري",2]
[1798,"جمعة يوسف","سوري",2]
[9911,"عمار سعيد مصطفى","سوري",1]
[6568,"محمد حسن يحيى","سوري",1]
[5402,"ابراهيم احمد مصطفى","مصري",1]
[4133,"محمود علي احمد","مصري",1]
[8986,"حسين محمد سيد علي","مصري",1]
[2238,"حسين سعد نصر","مصري",1]
[4084,"سامح محمد غيضان","مصري",2]
[2976,"السيد متولى على","مصري",3]
[1382,"خالد محمد ضاهر","سوري",1]
[5013,"شادي منير ليشو","سوري",1]
[4769,"محمود محسن عبدالمولى السعدني","مصري",{"$f":"COUNTIFS(A:A,A66)","v":2}]
[3103,"زينهم محمد","مصري",1]
[5118,"اسامة احمد احمد عفان","مصري",1]
[8412,"خالد انور قاسم","مصري",2]
[2635,"مصطفى محمود ","مصري",1]
[5919,"محمد عطية مراد","مصري",1]
[3739,"محمد علي عبدالرزاق","مصري",2]
[2125,"محمد مصطفى حسن","مصري",1]
[1409,"محمود حماده الحامدي","مصري",1]
[3693,"جمعة وهب الله محمد","مصري",1]
[8010,"اشرف محمد عبدالغني مشالي","مصري",1]
["تاجر","محمد شحده مسعود","فلسطيني",1]
[7878,"عاشور جمعة رمضان","مصري",1]
[3716,"احمد محمد المتولى","مصري",1]
[6467,"شبل احمد اللاح","مصري",2]
[6063,"رمضان سيد الحضري","مصري",1]
[8033,"ربيع رمضان خفاجي","مصري",1]
[5039,"وهدان طه محمود","مصري",2]
[7626,"السيد محمد العدل","مصري",1]
[8161,"رفعت علي عيون","سوري",1]
[1240,"محمد براء خالد مصطفى","سوري",1]
[2407,"محي الدين محمد عرنوس","سوري",2]
[7847,"محمد بشير عيون","سوري",1]
[1840,"علي مروان عرنوس","سوري",1]
[1522,"شحاده احمد يحيى","سوري",2]
[2325,"حسن سعيد الليل","سوري",1]
["ربة بيت","دينا الدروبي","سوري",1]
["طفل","احمد الصالح","سوري",3]
["طفل","لما الصالح","سوري",3]
["طفل","جمان الصالح","سوري",3]
["شاب","بشار الصالح","سوري",1]
[5047,"السيد محمد قميحة","مصري",2]
[2050,"وحيد محمد السيد محمد","مصري",1]
[1266,"جاد جمال احمد حسن","مصري",1]
[2791,"نادر عبدالرزاق ماميش","سوري",1]
["طبيب","مروان محمد شحدة المغربي","فلسطيني",1]
[1392,"احمد اسماعيل دياب","سوري",1]
[3964,"ازهر احمد ماميش","سوري",1]
[6762,"ياسر محمد الحماده","سوري",1]
[7258,"احمد ربيع شعبان","سوري",1]
[6545,"جاد احمد عبدالعزيز","مصري",1]
[8479,"محمد فاروق محمد امين","مصري",1]
[4373,"وليد عادل التوني","مصري",2]
[3699,"سليمان عبدالكريم جبالي","مصري",1]
[7016,"رمضان اسماعيل عبدالمنعم","مصري",1]
[7917,"عماد سعيد الحداد","مصري",1]
[2672,"ابراهيم محمود حميده","مصري",1]
[865,"جهاد خالد فرح","سوري",1]
["مهندس","سامر نور الدين دردر","سوري",1]
[9824,"صالح يحيى ناصر","يمني",1]
[9227,"فارس عمر رمضان","سوري",1]
[9838,"صديق شيخون صديق","مصري",1]
[1402,"نايف اسماعيل غية","سوري",1]
[6248,"سيف الدين محمد خراطة","سوري",1]
[2108,"محمد دحان ناصر","يمني",2]
[6113,"حمود دحان الشاوش","يمني",1]
[8311,"محمد دياب مقلد","سوري",1]
[7818,"عبدالستار ديب حمودة","سوري",1]
[9126,"محمد جمال سريا","سوري",1]
[3613,"محمد لطف محمد الجلال","يمني",2]
[7315,"هاني عبدالله شاهين","مصري",1]
[6490,"احمد حسين خريس","سوري",1]
[2339,"حلمي محمد محمود ابراهيم","مصري",1]
[2873,"عبدالحميد عوض الزوباني","سوري",1]
[1190,"احمد صبحي محسن","سوري",{"$f":"COUNTIFS(A:A,A130)","v":1}]
[6279,"سامي عبدالسلام النجار","مصري",1]
[2407,"عثمان عارف الشامي","سوري",2]
[6765,"محمد ناصر القوبعي","يمني",1]
[9061,"نائل عبدالرزاق اسماعيل","سوري",1]
[7676,"عادل اسماعيل الرفاعي","سوري",1]
[2468,"ربيع حجازي صديق محمد","مصري",1]
[2140,"خالد علي درويش","سوري",1]
[4855,"محمد علي الأحمد","سوري",1]
[6506,"ياسر محمد المحمد","سوري",1]
[5147,"نبيل احمد عبدالهادي","مصري",1]
[9673,"سامي مقبل القحطاني","يمني",1]
[2309,"هشام اسماعيل دياب","سوري",1]
[2976,"السيد متولى على","سوري",3]
[5470,"هشام نادر الجداوي","سوري",1]
["3شهور","يعقوب حبيجان","سوري",18]
["زيارة","محمد نور رياض المحمد","سوري",17]
["زيارة","محمد علي مطر","سوري",17]
[6237,"ماهر عزالدين القرفان","سوري",1]
[7877,"عبدالمجيد منصور احمد","مصري",1]
[6993,"صدقي مصطفى عطية","مصري",1]
[3757,"عادل ابراهيم رمضان","مصري",2]
["زيارة","عبدالمحسن ياسر الدراوشة","سوري",17]
[9903,"ميشيل فادي سعادة","سوري",1]
[4746,"احمد عبدالقادر بيثاري","سوري",1]
[1757,"عبدالسلام محمد العلي","سوري",1]
["زيارة","خير الله بشير الامين","سوري",17]
["زيارة","علاء زياد ابو نبوت","سوري",17]
[3212,"محمد عيد السلمان","سوري",1]
["3شهور","غوربريت سينغ","هندي",18]
["زيارة","مأمون هيثم الصليبي","سوري",17]
[9033,"كريم غريب العبسي","مصري",2]
[3948,"وليد محمد العوضي","مصري",1]
[3386,"بشير احمد المنلا","سوري",1]
[6200,"العوضي محمد العوضي","مصري",1]
[1366,"نعمان يوسف معنيه","سوري",2]
[4940,"عبدالكريم زين العابدين","سوري",2]
[1385,"فراس احمد ظاهر","سوري",3]
[6828,"محمد علي عبدالله الفرج","سوري",1]
[4966,"عماد خليل ابو خشريف","سوري",1]
[1519,"مخلص نعيم الدخل الله","سوري",2]
[1042,"فاضل فوزي زين العابدين","سوري",1]
[9760,"نزيه صادق حماده بخيت","مصري",1]
[5149,"سمير عبدالرزاق الصمادي","سوري",1]
["زيارة","محمد امين القاعي","سوري",17]
[3311,"احمد وجيه القيق","سوري",1]
[2648,"وليد محمد خير غازية","سوري",1]
[9250,"فادي محمد الكردي","سوري",1]
["زيارة","مهند محمد جاسم الحديدي","سوري",17]
[8765,"احمد محمد علي محمد","مصري",1]
[4246,"حسن حمد السدلاء","يمني",1]
[8125,"وليد محمد عبدالحميد","مصري",1]
[6707,"عبدالله السيد عبدالله محمد","مصري",1]
[1731,"نمر يوسف المسالمة","سوري",1]
[4923,"باسل يوسف المسالمة","سوري",1]
[1673,"محمد صالح الحميدي الصالح","سوري",1]
["زيارة","اشرف محمد الرويشدي","سوري",17]
["زيارة","حسن خالد الحسن","سوري",17]
[7103,"جمال احمد العتمة","سوري",2]
[6613,"مصطفى شحادة جنبيا","سوري",1]
[4549,"اياد شحادة جنبيا","سوري",1]
["زيارة","محمد عبدالرحيم المطر","سوري",17]
[3267,"كمال مصطفى الصعيدي","سوري",1]
[1005,"حمد حمود عبدالله","يمني",1]
[7938,"رضوان علي دياب","سوري",{"$f":"COUNTIFS(A:A,A194)","v":1}]
[3158,"عبدالحميد تيسير المفعلاني","سوري",2]
[4562,"ايهم نصر الناصر","سوري",1]
[3336,"حسان مصطفى الفلاح","سوري",1]
[5999,"زياد علي المرزوقي","سوري",1]
[13031,"عبدالسلام محمد الباز","مصري",1]
[2781,"فراس مصطفى طحينة","سوري",1]
[3047,"فاضل حكمت الفشتكي","سوري",1]
[1564,"خلدون فرحان ظاهر","سوري",1]
[9717,"احمد علي الرفاعي","سوري",2]
[1748,"مطاع كمال زين العابدين","سوري",1]
[2552,"وائل فرحان المصري","سوري",2]
[1706,"ماهر مصطفى العيسى","سوري",1]
[7377,"عبدالرحمن عزالدين القرفان","سوري",1]
[1790,"عبدالباسط اسماعيل عقلة","سوري",1]
[3307,"علاء جودة الشبلي","سوري",1]
[2423,"ناصر محمد الناصر","سوري",1]
[1565,"هيثم علي ابازيد","سوري",1]
[6373,"حافظ يوسف ادريس احمد","سوداني",1]
[7164,"ابراهيم محمد الغزالي","سوري",1]
[4187,"محمود بكر شهاب","سوري",1]
[5889,"مبارك محمد شلاش","سوري",2]
[1465,"احمد خلدون المسالمة","سوري",1]
[3535,"حذيفة النعمان حسن محمد","سوداني",1]
[7249,"عمار عبالحكيم البردان","سوري",2]
[8307,"مجدالدين محمد جمال العبيد","سوري",1]
[1926,"نبيل مسعود قريش","سوري",1]
[1107,"يونس اسعد يونس","سوري",2]
[6992,"خالد عوض شبيب","سوري",1]
[8493,"لؤي قاسم حمدان","سوري",2]
[7990,"محمد خير قاسم العامري","سوري",2]
[9856,"سامي محمد المصري","سوري",1]
[3228,"محمد عبدالقادر القرفان","سوري",1]
[4113,"طارق عيسى المحاميد","سوري",2]
[3036,"مراد غازي كشكوش","سوري",1]
[2189,"عاطف حسن الخابوري","سوري",2]
[7739,"مالك ياسين المهدي","سوري",1]
[3135,"عبدالسلام عبده عياش","سوري",1]
[8022,"خالد حسين الثلجي","سوري",1]
[1212,"محمد مسعود حيدر","سوري",1]
[2093,"عمر طه فياض","سوري",1]
[8281,"خالد يحيى  الفروح","سوري",1]
[3751,"شادي حسن الكور","سوري",1]
[1909,"فراس خيرو الغزاوي","سوري",1]
[1716,"احمد فواز المصري","سوري",2]
[1387,"حسام الدين مصطفى فلاح","سوري",1]
[6897,"احمد عبدالرحمن ادريس","سوري",1]
[6405,"اسامة محمد حاج يوسف","سوري",1]
[340208,"احمد دياب بسمة","سوري",1]
[2789,"فيصل مفلح المحاميد","سوري",1]
[1881,"خير الله محمد زين العابدين","سوري",1]
[8019,"ماهر حسين ابو الكاس","سوري",1]
[9070,"خليف احمد الطعمة","سوري",1]
[5304,"محمد ابراهيم عوض","سوري",1]
[9713,"عبدالله فواز المصري","سوري",1]
[2735,"طه خالد الشيخ الحجي","سوري",1]
[3018,"سامر زيدان السريس","سوري",1]
["زيارة","عمار محمد العوض","سوري",17]
[7646,"عماد احمد الفروح","سوري",1]
[1132,"محمد احمد فرعون","سوري",1]
[3055,"كاظم عبدالرحمن حسن","سوداني",1]
[2678,"خالد عبدو العبيد","سوري",1]
[1918,"رفعت دياب شلهوم","سوري",2]
[42365,"عبدالعزيز جاسم المسالمة","سوري",1]
[1208,"محمد ربيع رياض يحيى","سوري",{"$f":"COUNTIFS(A:A,A258)","v":1}]
[4113,"احمد محمود الاحمد","سوري",2]
[4252,"مصطفى عيسى السبيع","سوري",1]
[2199,"فيصل حسن كفايا","سوري",1]
[1383,"فادي اديب القواريط","سوري",1]
[2570,"محمد ضيف الله علي وتر","سوري",1]
[2149,"منعم رضوان الشلبي","سوري",2]
[1525,"نوري جمعة الاحمد","سوري",1]
["زيارة","نفسيه مول شمناد","هندية",17]
["زيارة","زايرا شمناد شمناد","هندية",17]
[12921,"منير احمد الغزالي","سوري",1]
[1007,"عبدالله خالد سوسق","سوري",1]
[2343,"محمد درويش مريمه","سوري",1]
[1043,"برهان محمود عموش","سوري",1]
[4768,"محمد عبد الحمادة","سوري",1]
[1471,"احمد  علي الجباوي","سوري",2]
[2124,"احمد محمد ادريس","سوري",1]
[5716,"عبدالمجيد سليم ضاوي","سوري",2]
[6760,"ادم حمود محمد الشابره","يمني",1]
[1142,"مصطفى محمد ريمة","سوري",1]
[7489,"وصيف السيد اسماعيل","مصري",2]
[6917,"احمد محمد احمد زقزوق","مصري",1]
[2111,"عماد احمد عنداني","سوري",1]
[6731,"خالد محمد سليمان","سوري",1]
[5049,"وليد عبدالعزيز محمد","مصري",1]
[2634,"مصطفى محمود عبدالبديع","مصري",1]
[3812,"محمد نادي عبدالجواد سنوسي","مصري",1]
["زيارة","قصي محمد نصر الدراوشة","سوري",17]
[1863,"ايوب صبحي المطر","سوري",1]
[1955,"محمود جمال حسين احمد","مصري",1]
[6832,"عايد اسعد الزرقان","سوري",2]
[1995,"خالد  عدنان الموال","سوري",1]
[2907,"علي حمد العلي","سوري",1]
[5498,"باسل محمد عواد","سوري",1]
[9731,"صادق اسماعيل البرم","سوري",1]
[8593,"علاوي صالح الخلف","سوري",2]
[8244,"طارق عيسى علوش","سوري",1]
[8755,"زاهر فضل المرجي قسم","سوداني",1]
[7666,"عبدالحكيم نواف سليمان ","سوري",2]
[1136,"مشهور علي عيون","سوري",1]
[8163,"رشيد حسين رزق ","سوري",1]
[7010,"احمد زهير السكاف","سوري",2]
[6036,"محمد سلطان المسالمة","سوري",1]
[5468,"نايف عثمان غيلان","سوري",1]
[1756,"جميل فيصل المرار الغزالي","سوري",1]
[2770,"مامون حسن الخرسان","سوري",1]
[1989,"ماهر فيصل الحريدين","سوري",1]
[7926,"عبدالمولا غالب الرويلي","سوري",1]
[2186,"نزار يوسف الصلخدي","سوري",1]
[8790,"خالد قاسم عبدالله","يمني",1]
[2930,"فيصل قاسم عبده","يمني",1]
["زيارة 3","اسامة نضال عودة","سوري",1]
[9710,"خليل علي الخلف الشريف","سوري",1]
[1468,"محمد عبدالله الوادي","سوري",1]
[862084,"ابراهيم فارس العتمة","سوري",1]
[9587,"وائل حمزة الناصر","سوري",1]
[108794,"محمد عيد ممدوح جنيد","سوري",1]
[1051,"خالد دياب غيلان","سوري",1]
[2698,"محمد ماجد الجراد","سوري",1]
[1612,"ايمن حسن العلي","سوري",2]
["زيارة 1","هالة وديع احمد الاغا","فلسطينية",1]
[4531,"محمود موسى مفضي","سوري",1]
[9935,"علي محمد جنبيا","سوري",1]
[9705,"عمر عبدالعزيز محمود","سوري",1]
[6592,"موسى عبدالحليم الاحمد","سوري",{"$f":"COUNTIFS(A:A,A322)","v":1}]
[6406,"عبدالرحمن عبدالحليم الشواخ الاحمد","سوري",1]
[3501,"حسين عليوي المحمد","سوري",1]
[3176,"اسعد محمد خضر","سوري",1]
[3290,"محسن محمود الشبراوي","مصري",2]
[1953,"جمال حسين السالم العلي","سوري",1]
[2092,"اسامة عبدالكريم الغزالي","سوري",1]
[9346,"قاسم محمد علوش","سوري",1]
[3358,"محمود عيسى المحاميد","سوري",1]
[2189,"محمد محمد فياض اسكيف","سوري",2]
[9005,"ياسر حسين الحاج ابراهيم","سوري",1]
[3349,"عادل حسين الفارس","سوري",1]
[1767,"عبدالرحمن محمود الاسود","سوري",1]
[3503,"عبدالعزيز حماد العلي","سوري",2]
[1627,"احمد سعيد الناصيف","سوري",1]
[6635,"ظافر حمودة شعبان","سوري",1]
[3476,"علاء عدنان مصطفى","سوري",2]
[6937,"عصام الدين ابراهيم","سوداني",1]
[1800,"زكريا محمد الشتار","سوري",1]
[6081,"حمزة محمد الشتار","سوري",1]
[3081,"فيصل احمد العطية","سوري",1]
[9618,"ماجد يوسف سعاده","سوري",1]
[1283,"احمد علي الشريف","سوري",1]
[4038,"عبدالجبار جدعان العلي","سوري",2]
[3400,"مساعد احمد مساعد البراري","يمني",1]
[4895,"عبدالله احمد مساعد البراري","يمني",1]
[9305,"حمير عبدالله العريجي","يمني",1]
[6800,"رضوان محمد يحيى","سوري",1]
[8212,"طلال عبداللطيف الاحمد الحمود","سوري",1]
[6832,"سمير حميد الدرع","سوري",2]
[2463,"عامر جبير العبد الهنا","سوري",1]
[1361,"غازي خلف العواد","سوري",1]
[3446,"ناصر صالح الحمود","سوري",1]
[7661,"اسامة ابراهيم حاج ناصر","سوري",1]
[3224,"جورج نبيل مراد","سوري",1]
[4797,"جان فؤاد سعاده","سوري",1]
[3146,"احمد مروان عرنوس","سوري",1]
[1107,"طلال نبيل شعبان","سوري",2]
[6865,"احمد طعان جمعة","سوري",1]
[1867,"احمد محمد الرفاعي","سوري",1]
[3006,"عبدالله طعان جمعة","سوري",1]
[1520,"محمد مطر الحلو","سوري",1]
[1685,"محمد طه البعيج","سوري",1]
[4657,"احمد عبدالله العبدالله","سوري",1]
[7413,"احمد هلال الضامن","سوري",1]
[9115,"عيسى احمد المحمد","سوري",1]
[1146,"ابراهيم محمد علي خليل","سوري",1]
[1076,"احمد حسن النايف","سوري",2]
[1054,"احمد علي اسعد","سوري",1]
[2852,"سهيل شحاده شعبان","سوري",2]
[8638,"زياد محمد زيد","سوري",1]
[1830,"الياس جمال الاحمر","سوري",1]
[3291,"صلاح عيسى عيسى","سوري",1]
[2729,"محمود فهد المطلق","سوري",1]
[2149,"عمر سلطان الاحمد","سوري",2]
["زيارة","ايرانهيكال عثمان ايرانهيكال","هندي",17]
[9709,"واصل احمد العبد","سوري",1]
[2940,"احمد شحاده جنيا","سوري",2]
[1847,"سامي عبدو البرماوي","سوري",1]
[2012,"زكريا عوض الاسماعيل","سوري",1]
[3092,"حسن احمد الناصر","سوري",1]
[6696,"عماد عمر ابراهيم","سوري",1]
[7993,"جاسم علي الخلف الشريف","سوري",1]
[5039,"عبدالرزاق احمد الحمود الخليف","سوري",2]
[3351,"نور الدين محمد السالم","سوري",{"$f":"COUNTIFS(A:A,A386)","v":1}]
[3352,"احمد انور رمضان","سوري",1]
[1172,"غياث محمد خير الليل","سوري",1]
[9949,"خالد جمعة اسماعيل","سوري",1]
[6098,"ثامر محمد الحسن","سوري",1]
[3071,"ماهر مخلف العلي","سوري",1]
[9681,"عبدالرزاق احمد الصالح","سوري",1]
[7408,"صياح نايف مريج","سوري",1]
[1841,"خالد بصري الاحمد","سوري",2]
[1761,"محمود احمد محمد","سوري",1]
[5133,"رائد عبدالحي الاكراد","سوري",1]
[1546,"حسين عبدالغفور الصالح","سوري",2]
[1247,"محمود محمد النعوس","سوري",2]
[4929,"محمد حسين الكور","سوري",1]
[4031,"محمد لورنس الفضيل","سوري",1]
[5116,"عبدالستار محمد السعيد","سوري",1]
[4185,"رياض فيصل الصلخدي","سوري",1]
[9394,"محمد عوض شبيب","سوري",1]
[2803,"سليمان محمود الصالح","سوري",1]
[252103,"خالد حسن اليونس","سوري",1]
[4503,"معتز احمد يحيى","سوري",1]
[5569,"محمد عبدالحميد محيميد","سوري",2]
[5162,"عبدالغني عبدالجليل الطه","سوري",1]
[2091,"موفق فارس احمد ","سوري",2]
[862174,"عبدالرزاق جبر الكور","سوري",1]
[1171,"عديل شحادة شعبان","سوري",1]
[1292,"علي محمد ديب ناصر","سوري",1]
[6078,"اكرم ديب حمودة","سوري",1]
[3082,"عبدالفتاح حسين الخلف","سوري",1]
[2690,"عبداللطيف صالح المحمد","سوري",1]
[3786,"احمد حسين مردود","سوري",1]
[3968,"عجيل سهيل احمد الحسين","سوري",1]
[2579,"عدنان يعقوب الزامل","سوري",1]
[2108,"محمد دحان ناصر","سوري",2]
[2749,"مروان عبدالهادي ابراهيم الحمدو","سوري",1]
[2564,"عامر حسين الخلف","سوري",1]
[6420,"محمد احمد الرفاعي","سوري",1]
[1455,"بشار وليد فرح","سوري",1]
[6914,"احمد سعيد حمودة","سوري",1]
[1476,"جمعة جدوع الفرج","سوري",1]
[3500,"علي عبادي العلي","سوري",1]
[4897,"محمد جدوع الفرج","سوري",1]
[141312,"يحيى عبدالقادر كيال","سوري",1]
[1239,"وليد محمد صايمة","سوري",1]
[8412,"وليد خالد الموال","سوري",2]
[4460,"محمد حميد القرفان","سوري",1]
[7249,"عمار عبدالحكيم البردان","سوري",2]
[5720,"خالد حسن الخروف","سوري",1]
[4505,"عبدالكريم احمد الصالح","سوري",1]
[5607,"محمد جهاد الاخرس الجنادي","سوري",1]
[1099,"حسام شتيوي البكيرية","سوري",2]
[1339,"محمد سمير فروة","سوري",1]
[8258,"غازي فيصل الحسين","سوري",1]
[1105,"احمد ياسين عبده صايبه","اردني",2]
[5280,"ابراهيم شحاه القدور","سوري",1]
[2202,"محمد عبيد علي","سوري",1]
[3373,"احمد عبدو حجازي","سوري",2]
[1777,"ناصر محمد الشتار","سوري",1]
[4002,"محمد سيد عبدالرحيم حسين","مصري",1]
[14997,"محمد عبدالرحمن عياش","سوري",1]
[3382,"امجد محمد فروة","سوري",1]
[1084,"محمد احمد الحسين الحمرة","سوري",2]
[8862,"رضوان محمود ضاهر","سوري",1]
[7856,"احمد محمد جاسم","سوري",1]
[2898,"محمد حسن الجاسم","سوري",{"$f":"COUNTIFS(A:A,A450)","v":1}]
[1467,"السيد ابراهيم حمادة محمد","مصري",1]
[9980,"محمد عبدالرحمن  الكلش","سوري",1]
[2562,"احمد عبدالله اصلان","سوري",1]
[16323,"احمد فتح الله عبدالحافظ السيد","مصري",1]
[4568,"سيد رمضان حسن عبدالشافي","مصري",1]
[3469,"يوسف صبحي رحيباني","سوري",1]
[3121,"قحطان يحي حسين المنجدي","يمني",1]
[6911,"جمال محمد محمد الشريفة","مصري",1]
[9960,"بشار وليد زعبوب","سوري",1]
[1388,"خالد علي المصيطف","سوري",1]
[8699,"محمد علي الشريف","سوري",1]
[5716,"عبدالحميد سليم ضاوي","سوري",2]
[3024,"قاسم محمد خير الخياري","سوري",1]
[6779,"جمال رجب ابراهيم محمد ","مصري",1]
[3483,"شادي عبدالرحمن الكلش","سوري",1]
[3545,"عبدالله عارف الشريف","سوري",1]
[6940,"احمد عارف الشريف","سوري",1]
[7253,"محيمد صالح الاحمد","سوري",1]
[8829,"احمد رضا احمد الرفاعي","مصري",1]
[6446,"محمد اسماعيل الشريف","سوري",1]
[6393,"عبدو محمود ضاهر","سوري",2]
[9190,"نضال محمود ضاهر","سوري",1]
[9093,"خالد خليف الهلال","سوري",1]
[3232,"محمد جاسم العوض","سوري",1]
[4079,"عثمان عوض علي محمد","سوداني",1]
[2018,"احمد محمد ابراهيم محمد","سوداني",1]
[1760,"خزاعي علي عيسى خزاعي","سوري",2]
[8910,"حسن عبدالمنعم المحمد","سوري",1]
[2296,"احمد محمد صحن","سوري",1]
[5485,"عارف قاسم القرمز","سوري",1]
[3106,"امين محمد الغانم","سوري",1]
[6895,"علي فاضل العليوي","سوري",1]
[7824,"علوان حمد العبد","سوري",1]
[1792,"فيحان زكريا الحمدو","سوري",1]
[1424,"سليم علي احمد","سوري",1]
[5914,"حجاج شعبان محمد الدسوقي","مصري",1]
[9267,"حامد سعد عبدالعزيز","مصري",1]
[5995,"عبادة حامد محمد ابو عبده","مصري",1]
[4940,"عبدالكريم محمد زين العابدين","سوري",2]
[9352,"عمر صالح الخضر الصالح","سوري",1]
[2225,"عبدالسلام عبدلله الفرج","سوري",1]
[5819,"علي محمد العميري","سوري",1]
[2053,"صالح علي صالح تيباس","يمني",1]
[3280,"احمد محمد النصار","سوري",1]
[680873,"عمر نايف الرفاعي","سوري",1]
["3شهور","محمد عبدالكافي سمرة","سوري",18]
[2666,"قاسم عبدالكريم الشيخ احمد","سوري",1]
["زيارة","قسام ناصر محمد النواصرة","فلسطيني",17]
[5653,"حسام جميل محمد صبرة","مصري",1]
[675789,"غالب مصطفى خزاعي","سوري",1]
[3120,"محمد نور حسين العمر","سوري",1]
[8405,"سامي عبدالله مرجان","سوداني",1]
[2303,"غيث بشرى النور طه","سوداني",1]
[7426,"ابراهيم ادم جبل تمساح","سوداني",1]
[1791,"عبدالحي عزالدين بو طه","سوري",1]
[2925,"عصام سامي محمد امين","مصري",1]
[3265,"سليمان حسن الهوارنه","سوري",1]
[4440,"زكريا عثمان الشيباني","سوري",1]
[7423,"عماد احمد الحمدان","سوري",1]
[5682,"علي محمد عبدالحميد عيد","سوري",2]
[7552,"احمد سعيد صالح باخربوش","يمني",1]
[7962,"منصف صبحي طيفور","سوري",2]
[2951,"احمد طلال الذياب","سوري",1]
[6001,"صقار احمد المحمد","سوري",{"$f":"COUNTIFS(A:A,A514)","v":1}]
[1396,"محمد ابراهيم العبدالرزاق","سوري",1]
[7353,"محمد احمد اطرش","سوري",1]
[3091,"محمد بديع قاسم","سوري",1]
[4733,"علي حمزة بصبوص","سوري",1]
[1858,"احمد محسن توفيق القاضي","مصري",2]
[4555,"محمد عبدالله صالح الشيبري","يمني",1]
["تجديد","قصي محمد نصر الدراوشة","سوري",1]
[253495,"عدنان هاني المرعي","سوري",1]
[6038751,"محمد علي سالم محمد","اردني",1]
[5996,"مؤيد جميل الكيفو","سوري",1]
[3753,"عيسى حسين العبدالمياح","سوري",1]
[336220,"خالد محمد الحسن","سوري",1]
[3552,"حامد سالم عكله","سوري",1]
[7430,"يونس سالم البغدة","سوري",1]
[1818,"نزار يوسف الصلخدي","سوري",1]
[9156,"عبدالله احمد العمر","سوري",1]
["3شهور","اشرف محمد الرويشدي","سوري",18]
["3شهور","هلال محمد فرحان الحزام","فلسطيني",18]
["3شهور","الهام محمد رياض بكر","فلسطيني",18]
["3شهور","رياض محمد رياض بكر","فلسطيني",18]
[4950,"حامد عبدالغني جمعة محمد","مصري",2]
[3623,"شحته السيد محمد حسين طبشر","مصري",3]
[1608,"فهد خلف الفرج","سوري",1]
[3074,"عزالدين عبدالعزيز مسالمة","سوري",1]
[9773,"ياسر ياسين حماده","سوري",1]
[2439,"محي الدين محمد القجمي","سوري",1]
[9385,"جساس علي الحميد الرزج","سوري",1]
[8137,"احمد لؤي الكيلاني","سوري",1]
[9955,"احمد محمد محمود عمران","مصري",1]
[3189,"احمد محمود مرندي","سوري",1]
[6407,"محمد عمر حاج يسين","سوري",1]
[9804,"غيث بشرى النور طه","سوداني",1]
[2236,"عبدالعظيم محمد علي نصرعلي","سوداني",1]
[9805,"صديق عبدالعزيز عبدالله النور","سوداني",1]
[9873,"ياسر مخلف العلي","سوري",1]
[4932,"باسل يوسف المسالمة","سوري",1]
[5912,"خالد درغام الفرج","سوري",1]
[2577,"يوسف حسن الهوارنة","سوري",1]
[9430,"محمد خير يوسف المحمد","سوري",1]
[1841,"احمد خالد النوري","سوري",2]
[6549,"علي احمد عجاج","سوري",1]
[1390,"بشير محمد المره","سوري",1]
[8480,"عبدالله محمد الرفاعي","سوري",1]
[9539,"احمد زهير السكاف","سوري",1]
[7635,"غيلان احمد غيلان","سوري",1]
[1595,"مكرم احمد تيتي","سوري",1]
[9404,"عبدالقادر خالد مغربل","سوري",1]
[1728,"حميدي عبود الحميدي","سوري",1]
[1084,"محمد علي الهلال","سوري",2]
[8008,"ثامر محمد الخلف","سوري",1]
[6153,"فؤاد عبده عياش","سوري",1]
[684232,"خالد حسين السيد","سوري",1]
[141773,"سمير محمود الصلخدي","سوري",1]
[6773,"محمد خالد السيد احمد","سوري",1]
[7990,"قاسم محمد خير الخياري","سوري",2]
[3644,"عثمان محمد محمد احمد","سوداني",1]
[1296,"محمد السيد سعيد احمد","مصري",1]
[1137,"حامد احمد ماميش","سوري",1]
[2904,"فاروق سميح شعبان","سوري",1]
[4663,"عطالله خلف التفاح","سوري",1]
[8471,"طلال مناع جبر","سوري",1]
[4860,"عزالدين حسين الجاسم","سوري",1]
[9522,"فيصل قاسم البسطي","سوري",1]
[3042,"حمد عبدالله الحسين","سوري",{"$f":"COUNTIFS(A:A,A578)","v":2}]
[7407,"سالم خلف الخلف","سوري",1]
[1249,"عبدالاله محمد غازية","سوري",1]
[7416,"غسان محمد الشحادات","سوري",1]
[6724,"عماد سلطان سرور","سوري",1]
[675786,"عبدالعليم عبدالمطلب المروان","سوري",1]
[1798,"جمعة محمد يونس","سوري",2]
[1596,"محمد زكريا جنبيا","سوري",1]
[9439,"احمد يوسف الحاري","سوري",1]
[2552,"حمود حسين العلي السالم","سوري",2]
[6132,"ضياء الدين الطيب مصطفى سالم","سوداني",1]
[4769,"عبدالرحمن عبيد البرغش الحسين","سوري",2]
[7234,"محمد رضا محمد شتا","مصري",1]
[4919,"محمد صالح السفيرة","سوري",1]
[2245,"عبدالجبار جدوع دواس","سوري",1]
[6054,"خالد طلال الذياب","سوري",1]
[5757,"زكريا احمد اللواش","سوري",1]
[3302,"اسماعيل حسين المحمد","سوري",1]
[8100,"احمد محمود السيد العشري","مصري",1]
["تاشيرة3شهر","عبدالباري فايز المرزوق","سوري",3]
["تاشيرة3شهر","رائد جهاد حبيجان","سوري",3]
[7109,"فارس لطف الله محسن","يمني",1]
[1553,"احمد حسن الباشا","سوري",1]
[1073,"عبدالمطلب عبدالهادي الاحمد","سوري",1]
[2910,"محمود حسين الخابور","سوري",2]
[2481,"شواخ حميدي العبدالله","سوري",1]
[8756,"ديب سعيد الفرج","سوري",1]
[3009,"شاكر محمد قريش","سوري",1]
[7845,"حمد بدوي السلامة","سوري",1]
[9212,"حمد حسن الحماده","سوري",2]
[6869,"حميدي احمد احمد حاج عمر","سوري",1]
[2590,"فؤاد ملوح الحمادي","سوري",1]
[5682,"علي محمد عبدالحميد عيد","مصري",2]
[5863,"علي حمدان المحيمد الدرويش","سوري",1]
[1102,"راغب بشير الصالح","سوري",1]
[1805,"محمد محيمد الحمود","سوري",1]
[2486,"محمد جمعة خليل هزيم","سوري",1]
[8224,"علاوي صالح الخلف","سوري",2]
[6906,"سعود عبد العواد","سوري",1]
[9033,"كريم غريب العبسي","سوري",2]
[6370,"زياد فواز الجبان","سوري",1]
[3144,"حسن فواز الجبان","سوري",1]
[5126,"علي فهد عثمان","سوري",1]
[1156,"عبدالقادر عبدالله عبدالرحمن","سوري",1]
[3569,"احمد حسن الجاسم","سوري",1]
[7755,"عادل محمود عوض العشري","مصري",1]
["تاشيرة3شهر","وليد خالد الحاج عمر","سوري",3]
[1771,"كرم حمدان احمد مرسي","مصري",1]
[1360,"احمد ابراهيم الجاسم","سوري",1]
[1516,"عبدالكريم عبدالله الاحمد","سوري",1]
[7489,"وصيف السيد عبدالرحمن اسماعيل","مصري",2]
[4595,"محمود خالد شاهين","سوري",1]
[2588,"علي حسون العبد","سوري",1]
[9466,"محمد يحيى جنبيا","سوري",1]
[1012,"محمد يحيى النجار","سوري",1]
[9717,"يامن محمد الربداوي","سوري",2]
[6247,"ايمن محمد السيد علي جغمان","مصري",1]
[3407,"اسامة محمود فتحي محمد","مصري",3]
[2967,"زغلول عبدالغني مصطفى عماره","مصري",1]
[3454,"عبدالرزاق صالح المحسن","سوري",1]
[6388,"محمد ابراهيم علي عامر","مصري",1]
[3445,"عبد احمد الاسعد","سوري",1]
[3476,"حسين عبدالله الاحمد","سوري",2]
[8549,"عمر محي الدين يونس","سوري",1]
[3431,"احمد محمد محمود صالح","مصري",{"$f":"COUNTIFS(A:A,A642)","v":1}]
[3883,"محمود محمد خلف محمد","مصري",1]
[1908,"سرحان علي عبدالحميد شرف الدين","مصري",1]
[9649,"مصطفى ابراهيم بولاد","سوري",1]
[7937,"احمد محمود شكر","سوري",1]
["شهر","مهند عبدالهادي الاحمد الحمود","سوري",19]
["شهر","عبدالرحمن عبدالغني العلي","سوري",19]
["شهر","عبدالرحمن عبدالله الاحمد","سوري",19]
[1168,"زياد شحادة جنبيا","سوري",1]
[1915,"خالد علي الراضي","سوري",1]
[4519,"مصطفى محمد ضلع","سوري",1]
["3شهور متعددة","زار سيد خان مالار خان","باكستاني",20]
["3شهور","رغدة بدر الدين علي محمد","مصرية",18]
[1429,"محمد علي علوش","سوري",1]
[7580,"ايمن طالب السويدان","سوري",1]
[3407,"حافظ جدوع الدواس","سوري",3]
["شهر","محمد عبدالهادي الاحمد الحمود","سوري",19]
[9275,"حسن خلف الابراهيم","سوري",1]
[2318,"عبدالعزيز عبدالقادر القرفان","سوري",1]
[1795,"زياد سليم الشتار","سوري",2]
[2986,"محمد علي بكر","سوري",1]
[1077,"عبدالرحمن فضل القطيفان","سوري",2]
[1679,"احمد محمد الفلاح","سوري",1]
[2976,"ناصر جاسم الجاسم","سوري",3]
[5410,"عمار ضاهرالجاسم","سوري",1]
[1072,"زياد سامي الاسماعيل","سوري",1]
[2649,"ياسر محمد حبيب","سوري",1]
[3100,"محمد احمد درويش","سوري",1]
[4241,"عامر سعيد القزعولي","سوري",1]
[9754,"عبد احمد العلي","سوري",1]
[1307,"عبدالهادي حسين محمد داوود","يمني",1]
[9809,"ابراهيم فاعور العيد","سوري",1]
[6834,"فتحي علي قاسم الوادعي","يمني",1]
[7414,"عوض النعيم عبدالماجد الكندو","سوداني",2]
[2693,"حاتم العبيد عبدالله احمد","سوداني",1]
[9266,"عبدالقادر يوسف عثمان علي","سوداني",2]
[9030,"زياد عمر عثمان","سوري",1]
[9457,"ايمن احمد الشلبي","سوري",1]
["3شهور","عبدالاله حسين اسعد","سوري",18]
[3449,"عبدالمنعم حسون المطر","سوري",1]
[6759,"وضاح احمد الناصر","سوري",1]
[5203,"خالد احمد العتمة","سوري",1]
[1519,"مخلص نعيم دخيل الله","سوري",2]
[2691,"عامر خليل الحمادي","سوري",1]
[3436,"حمادين عبدالله زريق","سوري",1]
[5664,"عبده مهدي محمد احمد","مصري",1]
[3369,"سعدون ابراهيم السيد مبارك","مصري",1]
[4506,"محمود محمد نصر صالح","مصري",1]
["3شهور متعددة","عبود حسن الكليش","سوري",20]
["3شهور متعددة","حميد احمد الخلف","سوري",20]
[3437,"نورس محمد عرنوس","سوري",1]
["شهر","عبدالرحيم عبدالرحمن الاحمد","سوري",19]
["شهر","عمر عبدالرحمن الاحمد","سوري",19]
[2944,"محمد خالد السلامة","سوري",1]
[9243,"شلاش اسعد الصالح","سوري",1]
[1870,"احمد سلطان عبدالقادر","سوري",1]
[6934,"عصام ابراهيم العبود","سوري",1]
["شهر","فضل موسى الاحمد","سوري",19]
[3244,"بلال فاضل العقلة","سوري",1]
[1471,"احمد علي الجباوي","سوري",2]
[1470,"ماهر احمد الجباوي","سوري",1]
[1874,"طارق عيسى المحاميد","سوري",1]
[4131,"اديب يونس الجباوي","سوري",1]
[2094,"فيصل اسماعيل الاسعد","سوري",1]
[4373,"وليد عادل السيد التوني","مصري",{"$f":"COUNTIFS(A:A,A706)","v":2}]
[1076,"عبدالحميد حمد الحمد","سوري",2]
[9363,"رافع محمد جالوش","سوري",1]
[2019,"مؤيد منذر غشام","سوري",1]
[2120,"ماهر مصطفى العواد","سوري",1]
[8245,"سمير محمد الخضر الصغير","سوري",1]
[8110,"محمد عويد السودة","سوري",1]
[2612,"محمد نور عبدالرزاق اسماعيل","سوري",1]
[5595,"فراس نواف هزاع الحجلي","اردني",1]
[1127,"هاني عبدالقادر فوال","سوري",2]
[5134,"سعيد محمد خير عبدالعزيز","سوري",1]
[3412,"محمود نصر الناصر","سوري",1]
[6624,"محمد هادي عمر العبود","سوري",1]
[5911,"جمعة احمد محمد احمد","سوري",1]
[2646,"خليل ابراهيم الناصر","سوري",1]
[6155,"اشرف صلاح صديق احمد","مصري",1]
[1708,"علي عبد ناصر","سوري",1]
[9839,"احمد عبدالرزاق فقيه","سوري",1]
[1889,"محمد علي محمود الغزالي","مصري",1]
[7900,"طارق محسن عبدالعزيز ذكي","مصري",1]
[4249,"عبدالله علي العبدالله","سوري",1]
[5568,"رجب عبدالمجيد توفيق","مصري",1]
["3شهور متعددة","محمد عبدالله الحواس","سوري",20]
[1004,"فراس مصطفى قداح","سوري",1]
[6428,"موسى احمد العتمة","سوري",1]
[6393,"محمد ضاهر ضامن","سوري",2]
[9340,"محمود علي نجم","سوري",2]
["شهر","ردينة محمد تيسير المفعلاني","سوري",19]
[1272,"عمار محمود الموسى","سوري",2]
[6461,"راشد جمعة الحميدي","سوري",1]
[3407,"احمد حسين الخابور","سوري",3]
[3997,"فراس قاسم القطيفان","سوري",1]
[1445,"كرم احمد تيتي","سوري",1]
[2850,"محمد ابراهيم تيتي","سوري",2]
[5617,"عبدالعظيم عبدالمولى ابو العينين","مصري",2]
[8531,"ابراهيم حمد الخلف","سوري",1]
[1175,"ناصر علي الغضبان","سوري",2]
[3739,"محمد علي محمد عبدالرزاق","مصري",2]
["3شهور متعددة","صالح شعبان محمد","سوري",20]
[7290,"حمد احمد السويدة","سوري",1]
[1667,"نزيه ابراهيم علي عبدالوهاب","مصري",1]
[3257,"محمد خلف الحسين الشمالي","سوري",1]
[1141,"محمد عمر المصري","سوري",1]
[1827,"محمد احمد صدور","سوري",1]
[3042,"عبدالرزاق احمد العطية","سوري",2]
[3512,"حمود موسى البري","سوري",1]
[8702,"محمد حسين مرتضى","سوري",1]
[5047,"حسن السيد محمد حسن قميحة","مصري",2]
["95-4374","جمال محمد الشحادات","سوري",1]
[1247,"مالك محمد الحمدو الهلال","سوري",2]
[2117,"محمد فاروق احمد ابراهيم","مصري",1]
[6695,"علاء محمود علي علي ","مصري",1]
[6683,"عبدالكريم احمد حج موسى","سوري",1]
[6669,"ناصر احمد الناصر","سوري",1]
[6261,"كمال فايز عبدالعزيز عبداللطيف","مصري",1]
[2971,"احمد محمود السالم","سوري",1]
[2954,"سعيد شوادفي محمد عبدالفتاح","مصري",1]
[1200,"عبدالرؤوف فرحان ايوب","سوري",1]
[2862,"شادي ممدوح العبيد","سوري",2]
[1581,"يونس محمد مسلم","سوري",1]
[7839,"مصعب علي نجم","سوري",1]
[2133,"عبدالله محمد حاج حميدي","سوري",1]
["3شهور","محمد عبدالعزيز الخطيب","سوري",18]
[3147,"جاسم عبدالوهاب علي","سوري",1]
["شهر","احمد حسين الاحمد","سوري",{"$f":"COUNTIFS(A:A,A770)","v":19}]
[2369,"حميد احمد الخليل","سوري",1]
[4501,"هويدي مرعي ا لسالم","سوري",1]
[8126,"حمود علي مردود","سوري",1]
[3494,"عمر جاسم الجاسم","سوري",1]
[9767,"زكريا محمد سباهيه","سوري",1]
[2610,"ضياء فهد المطلق","سوري",1]
[4093,"حسين مصطفى عبدولي","سوري",1]
[9915,"نجاد مسرور قلعه جي","سوري",1]
[1872,"عليوي ابراهيم العلي","سوري",1]
[2173,"عربي يوسف عفيفي طه","مصري",1]
[6377,"غسان محمد صالح سريا","سوري",1]
[1837,"علي عبدالعزيز سريول","سوري",1]
["شهر","علي محمود الدراوشة","سوري",19]
[6967,"منهل فايز الجندي","سوري",1]
[9331,"نسيم عمر النصر الله","سوري",1]
[3076,"عبدالله حسين الاحمد","سوري",1]
[4227,"احمد مصطفى حزاني","سوري",1]
[4407,"عاشج خلف الحسين الشمالي","سوري",1]
[1836,"حسين بشير الصالح","سوري",1]
["3شهور","شريف حسين الشريف","سوري",18]
[7962,"وليد صبحي ابراهيم عنيتر","مصري",2]
[6327,"ياسر مرعي الحسن","سوري",1]
[6518,"فيصل عبيد العلي","سوري",1]
[3790,"احمد حمزة الحسين","سوري",1]
[1099,"فيصل مفلح المحاميد","سوري",2]
[7727,"عمر يوسف الفرا","سوري",1]
[1385,"حسن رافت الزيدان","سوري",3]
[4201,"محمود ابراهيم حليمة","سوري",1]
[7103,"عبدالكريم محمد زين العابدين","سوري",2]
[4523,"مصطفى جمعة سليمان","سوري",1]
["شهر","محمد حسين الاحمد","سوري",19]
[2862,"حسين عبدالرزاق العساف","سوري",2]
[1669,"ياسين محمود الحاج عساف","سوري",1]
[6519,"عبدالستار يوسف مصطفى","سوري",1]
[5230,"زاهر خالد مصطفى","سوري",1]
[7462,"جاسم احمد الشعبان","سوري",1]
[7588,"احمد محمد قري","سوري",2]
[2410,"جميل ذيبو الدرويش","سوري",1]
[1862,"عبدالغني الامين حسن عبدالله","سوداني",1]
[1895,"مهرب شحادة الحسن","سوري",1]
[9516323,"احمد فتح الله عبدالحافظ السيد","مصري",1]
[7098,"حسن عوض ابو قياص","سوري",1]
[3574,"مناضل علي الناصيف","سوري",1]
["شهر","حسن علي الشيخ علي","سوري",19]
["شهر","حسين علي الشيخ علي","سوري",19]
[6887,"محسن عماش الحسين","سوري",1]
[3268,"حسن فواز الحوران","سوري",1]
[954374,"جمال محمد الشحادات","سوري",1]
[9515898,"ضاحي محمود علي محمود","مصري",1]
[3623,"علي محمد علي محمد حسين طبش","مصري",3]
[9958,"عبدالرحمن هاشم احمد العبيد","سوداني",1]
[3332,"عادل عثمان عبدالله محمد","سوداني",1]
[3162,"سطام محمد عساف","سوري",1]
[7010,"اسعد عبدالله فروة","سوري",2]
[3065,"بشير حسن الخلف","سوري",1]
[4318,"ابراهيم مصطفى العيسى","سوري",1]
[4302,"فادي محمد اليونس","سوري",1]
[4795,"احمد ثروت محمد شهاب","مصري",1]
[9671,"كامل الصديق محمد المقبول","سوداني",1]
[7468,"محمد عبد الحمادة","سوري",1]
[7925,"عبدالرزاق خالد الخطيب","سوري",1]
[7989,"بلال عبدالعزيز ابو حصيني","سوري",1]
["3شهور متعددة","عزيز رمضان محمد","سوري",20]
[4988,"مبارك محجوب هارون محمد","سوداني",{"$f":"COUNTIFS(A:A,A834)","v":1}]
[6790,"احمد حسين خريس","سوري",1]
[3522,"عبدالرزاق فياض سيد الشيخ","سوري",2]
[2214,"مروان ابراهيم زيانات","سوري",1]
["شهر","احمد عزالدين الهومي","سوري",19]
["3شهور","محمود صبحي محسن","سوري",18]
[7330,"محمد محمود الشيخ احمد","سوري",1]
[5341,"عبدالسلام سرحان الحمود","سوري",1]
[6863,"محمد الجيلي احمد  علي","سوداني",1]
[8516,"ابراهيم الضو ابراهيم مرجب","سوداني",1]
[1092,"رمضان طاهر احمد عبدالله","مصري",1]
[9303,"محمد جمعة اللباد","سوري",1]
[3654,"طارق جاسم العوض","سوري",1]
[8928,"شمس الدين شيخ الدين احمد","سوداني",1]
[4155,"مصطفى عيسى السبيع","سوري",1]
["3شهور متعددة","حسين عبدالله الصايل","سوري",20]
[7950,"امين احمد منصور","سوري",1]
[5928,"جمال محمد الحمادي","سوري",1]
[6833,"ابراهيم جمعة الحمود الخلف","سوري",1]
[7997,"عبدالكريم عبدو الكيفو","سوري",1]
[1366,"نعمان يوسف معنية","سوري",2]
[1580,"محمد يوسف عبدالله","سوري",1]
[9270,"حمدان مصطفى الحمدان","سوري",1]
[6860,"احمد ابراهيم العتمة","سوري",1]
[4160,"نواف حميدي الحميدي","سوري",1]
[1760,"ثلج حسن الخلف ","سوري",2]
[1372,"رضوان حمدو الشتيوي","سوري",2]
[4510,"محمود اسماعيل حسن اسماعيل","مصري",1]
[9199,"زهير موفق الفلاح","سوري",1]
[1630,"محمود مصطفى الصعيدي","سوري",1]
[8851,"حامد حمدي حامد جودة","مصري",1]
[6723,"شريف يونس النجم","سوري",1]
[9067,"احمد عبدالمنطلب عبدالله سعد","مصري",1]
[3158,"عبدالحميد محمد تيسير المفعلاني","سوري",2]
[1219,"وليد محمد رشيد بلو","سوري",1]
[4416,"عمر احمد الدالي","سوري",1]
[861072,"محمد حسن محمود حسن","مصري",1]
[8796,"ماهر محمد مهدي الخابوري","سوري",1]
["شهر","اسامة كامل عبدالله","سوري",19]
[6434,"محمد عبدالرزاق الاحمد","سوري",1]
[1105,"احمد ياسين عبده صايبة","اردني",2]
[7588,"سعيد علي الجباوي","سوري",2]
[2850,"بسام محمد المصري","سوري",2]
[6245,"محمد عثمان غيلان","سوري",1]
[5397,"خالد غالب الاقرع","سوري",1]
[1127,"فراس عبدالمنعم العبيد","سوري",2]
[5477,"احمد جاسم الحسين","سوري",1]
[8349,"مانع حسن علي","يمني",2]
[7750,"عماد خميس عبدالحميد عبدالسلام","مصري",1]
[3488,"علاء احمد محمد ابراهيم","مصري",1]
[9212,"حمد حسن الحمادة","سوري",2]
[9660,"علي احمد الخليل","سوري",1]
[7369,"فائز رمضان المصطفى السعد","سوري",1]
[3917,"محمد طيبى محمد بخيت احمد","مصري",1]
[1772,"ناصر محمد بركات","سوري",1]
[4950,"احمد علي ابو مسلم مصطفى","مصري",2]
[4084,"سامح محمد محمد غيضان","مصري",2]
[6371,"سعيد حانش الحسن","سوري",1]
[7017,"مصطفى السيد احمد حسن","مصري",2]
[2478,"احمد علي محمد علي","مصري",2]
[6049,"سامح نظمي عبدالمنعم حسين","مصري",2]
[9817,"علي احمد المليجي علي","مصري",1]
[4388,"احمد عابدين عبدالسلام عوض","مصري",2]
[8233,"السيد احمد عبدالسلام احمد","مصري",1]
[3373,"محمد حسين الحسن","سوري",{"$f":"COUNTIFS(A:A,A898)","v":2}]
[2852,"سهيل شحادة شعبان","سوري",2]
[4038,"عبدالجبار جدعان علي","سوري",2]
[3179,"فرزات مدالله الجندي","سوري",1]
[9517,"مصطفى محمد حاج حميدي","سوري",1]
[9512988,"وائل مصطفى المهدي","سوري",1]
[4014,"مصطفى خليفة احمد عبدالمجيد","مصري",1]
[1714,"محمد باقر معمو البشار","سوري",1]
[4508,"محمود توفيق زهري","سوري",1]
[7660,"عبدالحميد ابراهيم حاج ناصر","سوري",1]
[5128,"ايمن محمد الخرسان","سوري",1]
["3شهور متعددة","سطام اسماعيل اسماعيل","سوري",20]
["3شهور متعددة","ابراهيم غثوان الخلف","سوري",20]
[1979,"راكان محمد الحجار","سوري",1]
[6638,"شوقي احمد ضلع","سوري",1]
[1511,"محمد فؤاد ابراهيم","سوري",1]
[1795,"محي الدين محمد عسالي","سوري",2]
[7753,"خالد حميد الحمادة","سوري",1]
["3شهور متعددة","محمد عبدالرزاق الاحمد","سوري",20]
[8237,"رائد غالب العيد","سوري",1]
[2675,"فارس مثقال الفارس","سوري",1]
[2763,"غياث عبدالوهاب كوجان","سوري",1]
[6949,"مصطفى غالب سلامة","سوري",1]
[7293,"محمد سليمان اركي","سوري",1]
[3163,"محمد عبدالسلام الزعبي","سوري",1]
[5506,"رضا عبدالله العبدالله","سوري",1]
[3615,"عاطف جمعة احمد محمد","مصري",1]
[3706,"حسين عبدالوهاب علي","سوري",1]
[8224,"علاوي صالح خلف الخلف","سوري",2]
[1077,"عبدالرحمن فضل قطيفان","سوري",2]
[2558,"حسن حسين الكور","سوري",2]
[4538,"احمد جمال سليمان","سوري",1]
[3116,"ايمن رزق المسالمة","سوري",1]
[9834,"محمد محمد العثمان","سوري",1]
[3600,"محمد عبدالغني عموري","سوري",1]
["3شهور متعددة","خميس فرحان الطليب","سوري",20]
[7333,"جاسم بشير الخلف","سوري",1]
[9167,"زياد عطية العلوة","سوري",1]
[1634,"صالح جمعة العلي","سوري",1]
[9854,"قاسم محمد الجباوي","سوري",1]
[5884,"حسن عبدالعزيز الحسين","سوري",1]
[6536,"عبدالعليم حسين عبدالعليم","سوري",1]
[2091,"موفق فارس احمد","سوري",2]
[4415,"عبدالرحمن عبدالله الخلف","سوري",1]
[7469,"عماد عبدو ابو حمزة","سوري",1]
[7666,"عبدالحكيم نواف سليمان","سوري",2]
[4959,"ابراهيم خالد العمور","سوري",1]
[5890,"احمد سعيد عبدالسلام محمد","مصري",1]
[1621,"محمد جمال المنصور","سوري",1]
[8206,"يحيى جمال الليل","سوري",1]
[8847,"محمود العوضي سيد احمد شعير","مصري",1]
[1514,"حسين مصطفى المهدي","سوري",1]
[3996,"احمد علي المرعي","سوري",1]
[1707,"عبدالرزاق حميد المحمد","سوري",1]
[2940,"احمد شحادة جنبيا","سوري",2]
[6260,"محمد علي الخلف","سوري",1]
[1211,"حسين علي الحسين","سوري",1]
[1559,"محمد علي الحسين","سوري",1]
[9266,"حمود احمد حمود","سوري",2]
[6459,"غنام خليف العلي العزيرو","سوري",1]
[1852,"سليمان عيسى المحمد","سوري",1]
[1406,"محمد محمود الاحمد","سوري",1]
[9565,"محمد حمدان العيادة","سوري",1]
[3757,"عادل ابراهيم ابو الخير رمضان","مصري",2]
[2860,"الصديق سيف الدين علي بابكر","سوداني",{"$f":"COUNTIFS(A:A,A962)","v":1}]
[1670507,"رضا يحيى ابراهيم ابراهيم","مصري",1]
[1843,"رزق عبدالمنعم المسالمة","سوري",1]
[1372,"عثمان محمد جغل","سوري",2]
[9871,"ياسر مرعي القاسم","سوري",1]
["شهر","علي جمعة دعدوش","سوري",19]
[7056,"يحيى محمد محمود","سوري",1]
[1478,"لورنس عبدو الكيفو","سوري",1]
[2966,"كمال غازي غجية","سوري",1]
[9636,"رياض ياسين سبع","سوري",1]
[5193,"حسن جاسم العوض","سوري",1]
[6912,"هشام فاضل العقلة","سوري",1]
[5483,"خالد عبد العبد","سوري",1]
[4089,"سعود عبدالاله العبد الدغيم","سوري",1]
[6339,"طراد العفن ملوح","سوري",1]
[1191,"احمد عدنان محمود","سوري",2]
[9235,"عبدالغني محمد العلي","سوري",1]
[1129,"جهاد النوري الخلف","سوري",1]
[1202,"خلف حسين البنية","سوري",1]
[8119,"عبدالكريم احمد العقلة","سوري",1]
[7338,"عبيد سليمان سيد الشيخ","سوري",1]
[1241,"عبدالكريم محمود الحسين","سوري",1]
[2329,"عماد عبدالرحيم الاحمد","سوري",1]
[4536,"عماد جمعة عبدالله العدل","مصري",2]
[3151,"سليم محمد علي سليم","سوري",1]
[6704,"فادي محمد الجباوي","سوري",1]
[9150,"فادي علاوي الجاسم","سوري",1]
[7931,"علي احمد درويش","سوري",1]
[2946,"محمد ابراهيم الفروح","سوري",1]
[7735,"محمود جاسم الجاسم","سوري",1]
[2346,"حامد احميد الفرج","سوري",1]
[2910,"رياض حداوي الجاسم الصالح","سوري",2]
[3622,"محمود حامد العبدالله","سوري",1]
[7559,"ابراهيم جاسم الموسى","سوري",1]
[4750,"محمد محمد نبيل عمار سيد","مصري",1]
[1475,"صبحي محمد عاشور","سوري",1]
[3522,"نوري موسى الموسى الاحمد","سوري",2]
["3شهور متعددة","صلاح حمدو الشتيوي","سوري",20]
[6003,"موسى محمد الساير","سوري",1]
[1644,"حسين حمود جاسم","سوري",1]
[5458,"محمود عبداللطيف الاحمد الحمود","سوري",1]
[1191,"محمود شامان المطرود","سوري",2]
[5964,"رجب محمد بكري احمد","مصري",1]
[6165,"وحيد انور انور العوضي","مصري",1]
["3شهور","بدري عكلة المحمود","سوري",18]
[5569,"محمد عبدالحميد الحاج محيميد","سوري",2]
["3شهور متعددة","اسماعيل محمد الحاج حسن","سوري",20]
[3290,"محسن محمود الشبراوي بسيوني","مصري",2]
[5988,"اسلام عبدالمعطي ابو زيد عيسى","مصري",1]
[9699,"احمد عبدالسلام سعيد ابراهيم","مصري",1]
[2886,"بشار كريم الحاج عساف","سوري",1]
[6939,"محمد عزت احمد امبابي","مصري",1]
[6154,"اسعد حسن الاحمد","سوري",1]
[6215,"اديب حمدو الشتيوي","سوري",1]
[2060,"محمد حمدو شتيوي الاحمد","سوري",1]
[3477,"جمال علي خزيم","سوري",1]
[2382,"يوسف عبدالرزاق الحمدو","سوري",1]
[8189,"محمد موسى العبود","سوري",1]
[2985,"مصطفى انور ابازيد","سوري",1]
[5978,"طه محمد الهندي","سوري",1]
[8376,"محمد خير عبدالرحيم الاحمد","سوري",1]
[5889,"مبارك محمد الشلاش","سوري",2]
[3840,"ياسر ابراهيم الحمادي","سوري",1]
[8876,"عبدالوهاب احمد الكردوش","سوري",1]
[2836,"عبدالرحمن محمد الجميلي","سوري",{"$f":"COUNTIFS(A:A,A1026)","v":1}]
[3518,"حسن علي ا لعوض","سوري",1]
[1890,"بسام عدنان رضا","سوري",1]
[6467,"احمد خالد مغربل","سوري",2]
[6673,"خلف حسين حسن","سوري",1]
[2757,"خالد محمد حيدر","سوري",2]
[8593,"فايز محمد عبدالرزاق","سوري",2]
[1612,"ايمن حسن حسن العلي","سوري",2]
[9143602,"فراس احمد عقلة","سوري",1]
[8759,"محمد احمد محمد النور","سوداني",1]
[1782,"مدو حسين الفهيد","سوري",1]
[3498,"محسن عبدالحكيم المحاميد","سوري",1]
[8211,"احمد نايف عللوة","سوري",1]
[1522,"شحادة احمد يحيى","سوري",2]
[9917,"محمود قاسم غزال","سوري",1]
[8176,"خالد احمد العيسى","سوري",1]
[836697,"حسن حران محمد الحواحشة","اردني",1]
["3شهور متعددة","علي محمد الحمود","سوري",20]
[2520,"احمد حسن الباشا","سوري",1]
["3شهور متعددة","صدام محمد الحسين","سوري",20]
[1826,"حسين بشير الصالح","سوري",1]
[9460,"ربيع مصطفى جمعة","سوري",1]
[2824,"عبدالرحيم يوسف اليوسف الذيب","سوري",1]
[5872,"محمد صغير محمد جميلي","سوري",1]
[9197,"رضوان يوسف العطرات","سوري",1]
[3623,"شحتة السيد محمد حسين طبشر","مصري",3]
[5359,"عبدالرحمن جميل الكيفو","سوري",1]
[8519,"علي محمد العميري","سوري",1]
[4498,"ياسر عبدالهادي ابراهيم الحمدو","سوري",1]
[2289,"السيد السيد احمد المتولي","مصري",1]
[1716,"رمضان سيد احمد ابراهيم الحضري","مصري",2]
[1558,"ناصر محمد الخالد زيوانة","سوري",1]
[2838,"علي احمد الهزاع","سوري",1]
[954977,"حجاج عبدالرسول عبدالمعطي محمود","مصري",1]
[8365,"ابراهيم حسن العياش","سوري",1]
[1385,"حسين رافت الزيدان","سوري",3]
[1469,"حسان عبدالسلام الخرسان","سوري",1]
[1744,"حسن احمد صمادي","سوري",1]
[9340,"محمد علي نجم","سوري",2]
[4976,"محمد ياسين الفرج","سوري",1]
[7457,"ابي محمد حسن محمد","سوداني",1]
[5896,"سامح السيد عبدالله السيد","مصري",1]
[1106,"صبري ناصر غصن ناصر","مصري",1]
[9696,"مهند جميل الكيفو","سوري",1]
[4410,"محمد نايف قريش","سوري",1]
[4261,"سليمان معمر السلامات","سوري",1]
[2932,"سالم مفضي العمير","سوري",1]
["3شهور متعددة","يحيى محمد محمود","سوري",20]
[3928,"احمد محمد احمد عبدالرحمن","مصري",1]
[9599,"احمد ابلال المحمد","سوري",1]
[8650,"احمد عبدالتواب عبدالمنعم نصر","مصري",1]
[954519,"محمد السيد محمود عبدالمعبود","مصري",1]
[5959,"يوسف ابراهيم الخلوف","سوري",1]
[4796,"عبدالرحمن عبيد البرغش الحسين","سوري",1]
[2855,"علي حسون العبد","سوري",1]
["3شهور متعددة","ذيشان دلشاد","هندي",20]
[7175,"عبود عزيز الفرج","سوري",1]
[1000,"محي الدين محمد الصالح","سوري",1]
[3503,"وليد توفيق الوسمي","سوري",2]
[1175,"محمد عبود عليوي","سوري",2]
[8561,"عمر اسعد الصاري","سوري",1]
[2593,"ابراهيم حسين حومد","سوري",1]
[1138,"عماد حسين احمد","سوري",1]
[3326,"جاسم علاوي الجاسم","سوري",1]
["3شهور متعددة","مبارك هلال الحمدان","سوري",{"$f":"COUNTIFS(A:A,A1090)","v":20}]
[1871,"احمد علي عموش","سوري",1]
[1858,"احمد محسن توفيق الدسوقي","مصري",2]
[1799,"محمد راغد مامون بعلي","سوري",1]
[8318,"ابراهيم مصطفى العيسى","سوري",1]
[9217,"هيثم محمد ابراهيم محمد علي","مصري",1]
[1787,"خليل علي العبدالرزاق","سوري",1]
[950,"عدنان سليمان العويدات","سوري",1]
[3031,"هاني عبدو البرماوي","سوري",1]
[1472,"عمار كريم عساف","سوري",1]
[9239,"حسين علي الشالي","سوري",1]
[4996,"فيصل حمود الحمدو","سوري",1]
["تجديد 3 شهور","محمد عبدالكافي سمره","سوري",1]
[5095,"وليد عبدالعزيز محمد محمد","مصري",1]
[4483,"سلطان محمد الخلف اليوسف","سوري",1]
[2777,"منصور فواز الكور","سوري",1]
[8349,"مانع حسن علي الغانمي","يمني",2]
[1546,"صمادي احمد صمادي","سوري",2]
[4935,"حمدان مجدل حواس","سوري",1]
["3شهور متعددة","يحيى عبدالحميد محمود","سوري",20]
[7979,"احمد درويش الحمود العبد","سوري",1]
[1221,"مصطفى محي الدين اسماعيل","سوري",1]
[1280,"انس عدنان شعبان","سوري",1]
[6728,"موسى احمد العتمة","سوري",1]
[6309,"محمد شعبان محمود ابو المجد","مصري",1]
["3شهور متعددة","عصمت خان زرمستان","باكستاني",20]
["3شهور","فاطمة عبدالرحمن صادق","سوري",18]
["3شهور","اسماء عمار الصادق","سوري",18]
["3شهور","ولاء عمار الصادق","سوري",18]
["3شهور","محمد عمار الصادق","سوري",18]
["شهر","احمد محمد حجي حسين","سوري",19]
["شهر","فرج محمد حجي حسين","سوري",19]
["3شهور","قاسم محمد مريمة","سوري",18]
[6835,"رياض احمد الجابر","سوري",1]
[9492,"رمضان السعيد احمد حنتوش","مصري",1]
[14066,"محمد محمود الاحمد","سوري",1]
[3613,"محمد حامد عبدالرحيم السعدني","مصري",2]
["شهر","بشار موسى الاحمد","سوري",19]
[2757,"خالد محمود حيدر","سوري",2]
[3570,"ماهر نمر الموسى","سوري",1]

{"sheet":"Sheet3","index":3,"n_rows":0,"n_cols":0,"rows_kept":0,"cut":false,"hidden":false,"merged":[]}